lending/lending_fUSD_20250121
["ID","MTS","AMOUNT","RATE_DAILY","PERIOD"]
[349774930,1737420668806,-997.28,0.00021369,2]
[349774931,1737420668816,-2052.29,0.00021369,2]
[349774932,1737420668826,-1712.99,0.00021369,2]
[349774933,1737420668836,-513.12,0.00021369,2]
[349774934,1737420668845,-1991.53,0.00021369,2]
[349774935,1737420668855,-1181.16,0.00021369,2]
[349774936,1737420668864,-1416.54,0.00021369,2]
[349774937,1737420668874,-500.0,0.00021369,2]
[349774938,1737420668883,-3603.52,0.00021369,2]
[349774939,1737420668893,-2319.77,0.00021369,2]
[349774940,1737420668902,-780.49,0.00021369,2]
[349774941,1737420668911,-1254.23,0.00021369,2]
[349774942,1737420668920,-500.0,0.00021369,2]
[349774943,1737420668929,-500.0,0.00021369,2]
[349774944,1737420668941,-2547.64,0.00021369,2]
[349774945,1737420668951,-500.0,0.00021369,2]
[349774946,1737420668961,-556.06,0.00021369,2]
[349774947,1737420668970,-1503.59,0.00021369,2]
[349774948,1737420668980,-500.0,0.00021369,2]
[349774949,1737420668990,-500.0,0.00021369,2]
[349774950,1737420669000,-826.66,0.00021369,2]
[349774951,1737420669010,-500.0,0.00021369,2]
[349774952,1737420669019,-500.0,0.00021369,2]
[349774953,1737420669028,-1445.2,0.00021369,2]
[349774954,1737420669037,-549.87,0.00021369,2]
[349774955,1737420669047,-1204.67,0.00021369,2]
[349774956,1737420669057,-883.4,0.00021369,2]
[349774957,1737420669067,-500.0,0.00021369,2]
[349774958,1737420669078,-444.19695238,0.00021369,2]
[349774959,1737420669087,-500.0,0.00021369,2]
[349774960,1737420669097,-500.0,0.00021369,2]
[349774961,1737420669106,-1126.47,0.00021369,2]
[349774962,1737420669115,-633.24,0.00021369,2]
[349774963,1737420669125,-2671.26,0.00021369,2]
[349774964,1737420669134,-693.42,0.00021369,2]
[349774965,1737420669144,-1915.82,0.00021369,2]
[349774966,1737420669153,-500.0,0.00021369,2]
[349774967,1737420669163,-500.0,0.00021369,2]
[349774968,1737420669172,-2393.16,0.00021369,2]
[349774969,1737420669181,-500.0,0.00021369,2]
[349774970,1737420669193,-513.39,0.00021369,2]
[349774971,1737420669202,-603.06,0.00021369,2]
[349774972,1737420669211,-1417.44,0.00021369,2]
[349774973,1737420669225,-500.0,0.00021369,2]
[349774974,1737420669235,-500.0,0.00021369,2]
[349774975,1737420669244,-500.0,0.00021369,2]
[349774976,1737420669253,-500.0,0.00021369,2]
[349774977,1737420669263,-500.0,0.00021369,2]
[349774978,1737420669274,-500.0,0.00021369,2]
[349774979,1737420669285,-582.27,0.00021369,2]
[349774980,1737420669294,-500.0,0.00021369,2]
[349774981,1737420669304,-1857.25,0.00021369,2]
[349774982,1737420669313,-2242.43,0.00021369,2]
[349774983,1737420669323,-6033.41,0.0002137,2]
[349774984,1737420669332,-150.0,0.000214,2]
[349774985,1737420669341,-981.55,0.000214,2]
[349774986,1737420669350,-1638.23,0.000214,2]
[349774987,1737420669359,-150.0,0.000214,2]
[349774988,1737420669369,-300.86,0.000214,2]
[349774989,1737420669379,-278.54,0.000214,2]
[349774990,1737420669388,-874.56,0.000214,2]
[349774991,1737420669397,-240.2,0.000214,2]
[349774992,1737420669406,-150.0,0.000214,2]
[349774993,1737420669416,-300.0,0.000214,2]
[349774994,1737420669426,-150.0,0.000214,2]
[349774995,1737420669437,-150.0,0.000214,2]
[349774996,1737420669447,-230.81181001,0.00021417,2]
[349774997,1737420669455,-500.0,0.00021466,7]
[349774998,1737420669465,-500.0,0.00021466,7]
[349774999,1737420669474,-500.0,0.00021466,7]
[349775000,1737420669483,-500.0,0.00021466,7]
[349775001,1737420669492,-500.0,0.00021466,7]
[349775002,1737420669501,-500.0,0.00021466,7]
[349775003,1737420669510,-500.0,0.00021466,7]
[349775004,1737420669519,-400.46,0.00021466,7]
[349775005,1737420669528,-500.0,0.00021466,7]
[349775006,1737420669537,-500.0,0.00021466,7]
[349775007,1737420669547,-500.0,0.00021466,7]
[349775008,1737420669556,-500.0,0.00021466,7]
[349775009,1737420669565,-500.0,0.00021466,7]
[349775010,1737420669574,-500.0,0.00021466,7]
[349775011,1737420669583,-500.0,0.00021466,7]
[349775012,1737420669592,-500.0,0.00021466,7]
[349775013,1737420669602,-500.0,0.00021466,7]
[349775014,1737420669610,-500.0,0.00021466,7]
[349775015,1737420669619,-500.0,0.00021466,7]
[349775016,1737420669628,-500.0,0.00021466,7]
[349775017,1737420669637,-500.0,0.00021466,7]
[349775018,1737420669646,-500.0,0.00021466,7]
[349775019,1737420669655,-500.0,0.00021466,7]
[349775020,1737420669664,-500.0,0.00021466,7]
[349775021,1737420669673,-500.0,0.00021466,7]
[349775022,1737420669683,-500.0,0.00021466,7]
[349775023,1737420669694,-500.0,0.00021466,7]
[349775024,1737420669703,-500.0,0.00021466,7]
[349775025,1737420669712,-500.0,0.00021466,7]
[349775026,1737420669722,-500.0,0.00021466,7]
[349775027,1737420669731,-500.0,0.00021466,7]
[349775028,1737420669741,-500.0,0.00021466,7]
[349775029,1737420669751,-500.0,0.00021466,7]
[349775030,1737420669761,-500.0,0.00021466,7]
[349775031,1737420669770,-500.0,0.00021466,7]
[349775032,1737420669779,-500.0,0.00021466,7]
[349775033,1737420669790,-500.0,0.00021466,7]
[349775034,1737420669801,-500.0,0.00021466,7]
[349775035,1737420669811,-419.7,0.00021466,7]
[349775036,1737420669820,-150.0,0.00021467,2]
[349775037,1737420669829,-150.0,0.00021481,2]
[349775038,1737420669838,-230.81181001,0.00021486,2]
[349775039,1737420669849,-166.0,0.00021488,2]
[349775040,1737420669858,-150.0,0.00021494,2]
[349775041,1737420669868,-171.77,0.00021497,2]
[349775042,1737420669878,-466887.41481025,0.000215,4]
[349775043,1737420669888,-1714.0,0.000215,2]
[349775044,1737420669898,-2110.0,0.000215,2]
[349775045,1737420669908,-673.02,0.0002151,2]
[349775046,1737420669918,-500.0,0.0002151,2]
[349775047,1737420669927,-429.91334376,0.00021514,2]
[349775048,1737420669940,-501.68978667,0.00021521,2]
[349775049,1737420669949,-1482.97,0.00021543,2]
[349775050,1737420669960,-500.0,0.00021543,2]
[349775051,1737420669969,-1199.3,0.00021543,2]
[349775052,1737420669980,-551.03,0.00021543,2]
[349775053,1737420669989,-2292.14,0.00021543,2]
[349775054,1737420670000,-500.0,0.00021543,2]
[349775055,1737420670010,-620.92,0.00021543,2]
[349775056,1737420670019,-500.0,0.00021543,2]
[349775057,1737420670029,-500.0,0.00021543,2]
[349775058,1737420670038,-753.81,0.00021543,2]
[349775059,1737420670048,-597.97,0.00021543,2]
[349775060,1737420670057,-750.01,0.00021543,2]
[349775061,1737420670067,-1174.84,0.00021543,2]
[349775062,1737420670077,-652.84,0.00021543,2]
[349775063,1737420670087,-2187.02,0.00021543,2]
[349775064,1737420670097,-848.77,0.00021543,2]
[349775065,1737420670106,-1671.37,0.00021543,2]
[349775066,1737420670115,-3969.98,0.00021543,2]
[349775067,1737420670125,-500.0,0.00021543,2]
[349775068,1737420670134,-634.19,0.00021543,2]
[349775069,1737420670143,-3283.45,0.00021543,2]
[349775070,1737420670153,-1093.65,0.00021543,2]
[349775071,1737420670163,-654.71,0.00021543,2]
[349775072,1737420670172,-2167.64,0.00021543,2]
[349775073,1737420670181,-636.22,0.00021543,2]
[349775074,1737420670194,-500.0,0.00021543,2]
[349775075,1737420670204,-709.4,0.00021543,2]
[349775076,1737420670214,-1498.52,0.00021543,2]
[349775077,1737420670224,-1044.91,0.00021543,2]
[349775078,1737420670233,-1345.86,0.00021543,2]
[349775079,1737420670245,-500.0,0.00021543,2]
[349775080,1737420670255,-966.72,0.00021543,2]
[349775081,1737420670264,-1000.0,0.00021543,2]
[349775082,1737420670274,-1312.72,0.00021543,2]
[349775083,1737420670284,-615.08,0.00021543,2]
[349775084,1737420670295,-1967.56,0.00021543,2]
[349775085,1737420670305,-150.0,0.00021553,2]
[349775086,1737420670314,-230.81181001,0.00021555,2]
[349775087,1737420670326,-1748.7865365,0.0002156,2]
[349775088,1737420670336,-654.67928511,0.00021567,2]
[349775089,1737420670453,-5062.61372,0.00021567,30]
[349775090,1737420670463,-1000.0,0.000216,2]
[349775091,1737420670472,-150.0,0.00021603,2]
[349775092,1737420670483,-19075.48069027,0.00021613,2]
[349775093,1737420670492,-500.0,0.00021614,2]
[349775094,1737420670501,-757.09,0.00021614,2]
[349775095,1737420670510,-500.0,0.00021614,2]
[349775096,1737420670519,-723.87,0.00021614,2]
[349775097,1737420670527,-567.14,0.00021614,2]
[349775098,1737420670536,-500.0,0.00021614,2]
[349775099,1737420670545,-500.0,0.00021614,2]
[349775100,1737420670554,-500.0,0.00021614,2]
[349775101,1737420670563,-600.76,0.00021614,2]
[349775102,1737420670572,-500.0,0.00021614,2]
[349775103,1737420670581,-500.0,0.00021614,2]
[349775104,1737420670591,-500.0,0.00021614,2]
[349775105,1737420670599,-541.66,0.00021614,2]
[349775106,1737420670608,-500.0,0.00021614,2]
[349775107,1737420670618,-150.0,0.0002162,2]
[349775108,1737420670627,-2276.20290867,0.0002162,2]
[349775109,1737420670636,-230.81181001,0.00021624,3]
[349775110,1737420670645,-1269.0,0.00021633,2]
[349775111,1737420670654,-2018.0,0.00021633,2]
[349775112,1737420670663,-150.0,0.00021633,2]
[349775113,1737420670673,-567.0,0.00021633,2]
[349775114,1737420670683,-636.0,0.00021633,2]
[349775115,1737420670697,-1863.0,0.00021633,2]
[349775116,1737420670707,-1261.0,0.00021633,2]
[349775117,1737420670715,-2992.022,0.00021633,2]
[349775118,1737420670725,-907.0,0.00021633,2]
[349775119,1737420670734,-898.0,0.00021633,2]
[349775120,1737420670744,-150.0,0.00021633,2]
[349775121,1737420670754,-3983.0,0.00021633,2]
[349775122,1737420670763,-539.707,0.00021633,2]
[349775123,1737420670773,-1175.0,0.00021633,2]
[349775124,1737420670782,-150.0,0.00021633,2]
[349775125,1737420670791,-3901.0,0.00021633,2]
[349775126,1737420670800,-150.0,0.00021633,2]
[349775127,1737420670810,-500.0,0.00021643,2]
[349775128,1737420670819,-500.0,0.00021643,2]
[349775129,1737420670828,-418.74122655,0.00021643,2]
[349775130,1737420670838,-401.68913556,0.00021643,2]
[349775131,1737420670847,-500.0,0.00021643,2]
[349775132,1737420670856,-541.66,0.00021643,2]
[349775133,1737420670865,-500.0,0.00021643,2]
[349775134,1737420670875,-1183.9,0.00021643,2]
[349775135,1737420670884,-505.3,0.00021643,2]
[349775136,1737420670894,-500.0,0.00021643,2]
[349775137,1737420670903,-174.09317278,0.00021643,2]
[349775138,1737420670912,-500.0,0.00021643,2]
[349775139,1737420670921,-500.0,0.00021643,2]
[349775140,1737420670930,-500.0,0.00021643,2]
[349775141,1737420670943,-500.0,0.00021643,2]
[349775142,1737420670953,-500.0,0.00021643,2]
[349775143,1737420670962,-500.0,0.00021643,2]
[349775144,1737420670971,-500.0,0.00021643,2]
[349775145,1737420670981,-501.19,0.00021643,2]
[349775146,1737420670991,-500.0,0.00021643,2]
[349775147,1737420671001,-500.0,0.00021643,2]
[349775148,1737420671011,-500.0,0.00021643,2]
[349775149,1737420671021,-500.0,0.00021643,2]
[349775150,1737420671030,-500.0,0.00021643,2]
[349775151,1737420671039,-500.0,0.00021643,2]
[349775152,1737420671048,-500.0,0.00021643,2]
[349775153,1737420671057,-500.0,0.00021643,2]
[349775154,1737420671066,-500.0,0.00021643,2]
[349775155,1737420671075,-500.0,0.00021643,2]
[349775156,1737420671084,-500.0,0.00021643,2]
[349775157,1737420671094,-500.0,0.00021643,2]
[349775158,1737420671103,-572.63,0.00021643,2]
[349775159,1737420671112,-609.47,0.00021643,2]
[349775160,1737420671121,-500.0,0.00021643,2]
[349775161,1737420671130,-500.0,0.00021643,2]
[349775162,1737420671139,-500.0,0.00021643,2]
[349775163,1737420671148,-500.0,0.00021643,2]
[349775164,1737420671159,-583.33,0.00021643,2]
[349775165,1737420671167,-500.0,0.00021643,2]
[349775166,1737420671177,-531.28,0.00021643,2]
[349775167,1737420671189,-569.92,0.00021643,2]
[349775168,1737420671198,-604.16,0.00021643,2]
[349775169,1737420671207,-500.0,0.00021643,2]
[349775170,1737420671217,-664.29,0.00021643,2]
[349775171,1737420671230,-500.0,0.00021643,2]
[349775172,1737420671239,-500.0,0.00021643,2]
[349775173,1737420671249,-530.98659201,0.00021643,2]
[349775174,1737420671258,-500.0,0.00021643,2]
[349775175,1737420671269,-500.0,0.00021643,2]
[349775176,1737420671279,-500.0,0.00021643,2]
[349775177,1737420671289,-687.02,0.00021643,2]
[349775178,1737420671299,-500.0,0.00021643,2]
[349775179,1737420671310,-500.0,0.00021643,2]
[349775180,1737420671322,-500.0,0.00021643,2]
[349775181,1737420671332,-565.11,0.00021643,2]
[349775182,1737420671341,-500.0,0.00021643,2]
[349775183,1737420671351,-560.89,0.00021643,2]
[349775184,1737420671362,-500.0,0.00021643,2]
[349775185,1737420671371,-500.0,0.00021643,2]
[349775186,1737420671381,-500.0,0.00021643,2]
[349775187,1737420671391,-668.45,0.00021643,2]
[349775188,1737420671400,-650.98,0.00021643,2]
[349775189,1737420671410,-500.0,0.00021643,2]
[349775190,1737420671420,-563.68,0.00021643,2]
[349775191,1737420671430,-588.71,0.00021643,2]
[349775192,1737420671442,-500.0,0.00021643,2]
[349775193,1737420671451,-566.19,0.00021643,2]
[349775194,1737420671461,-500.0,0.00021643,2]
[349775195,1737420671470,-500.0,0.00021643,2]
[349775196,1737420671479,-500.0,0.00021643,2]
[349775197,1737420671488,-500.0,0.00021643,2]
[349775198,1737420671497,-529.83,0.00021643,2]
[349775199,1737420671508,-500.0,0.00021643,2]
[349775200,1737420671519,-1697.86,0.00021643,2]
[349775201,1737420671528,-500.0,0.00021643,2]
[349775202,1737420671539,-500.0,0.00021643,2]
[349775203,1737420671550,-1013.61,0.00021643,2]
[349775204,1737420671560,-564.16,0.00021643,2]
[349775205,1737420671570,-500.0,0.00021643,2]
[349775206,1737420671581,-659.43,0.00021643,2]
[349775207,1737420671591,-606.85,0.00021643,2]
[349775208,1737420671600,-796.12,0.00021643,2]
[349775209,1737420671610,-716.849871,0.00021643,2]
[349775210,1737420671619,-500.0,0.00021643,2]
[349775211,1737420671629,-500.0,0.00021643,2]
[349775212,1737420671639,-500.0,0.00021643,2]
[349775213,1737420671650,-500.0,0.00021643,2]
[349775214,1737420671659,-500.0,0.00021643,2]
[349775215,1737420671668,-500.0,0.00021643,2]
[349775216,1737420671678,-1154.51,0.00021643,2]
[349775217,1737420671688,-500.0,0.00021643,2]
[349775218,1737420671698,-506.96,0.00021643,2]
[349775219,1737420671707,-2225.1,0.00021643,2]
[349775220,1737420671717,-1515.28,0.00021643,2]
[349775221,1737420671727,-882.93,0.00021643,2]
[349775222,1737420671736,-500.0,0.00021643,2]
[349775223,1737420671746,-487.986546,0.00021643,2]
[349775224,1737420671755,-1343.47,0.00021643,2]
[349775225,1737420671765,-881.44,0.00021643,2]
[349775226,1737420671775,-500.0,0.00021643,2]
[349775227,1737420671785,-2159.62,0.00021643,2]
[349775228,1737420671794,-845.58,0.00021643,2]
[349775229,1737420671804,-1653.02,0.00021643,2]
[349775230,1737420671813,-3061.98,0.00021643,2]
[349775231,1737420671823,-610.57,0.00021643,2]
[349775232,1737420671833,-1451.25,0.00021643,2]
[349775233,1737420671843,-1027.64,0.00021643,2]
[349775234,1737420671853,-500.0,0.00021643,2]
[349775235,1737420671862,-500.0,0.00021643,2]
[349775236,1737420671872,-969.02,0.00021643,2]
[349775237,1737420671882,-1967.24,0.00021643,2]
[349775238,1737420671893,-1111.37,0.00021643,2]
[349775239,1737420671903,-898.19,0.00021643,2]
[349775240,1737420671912,-980.84,0.00021643,2]
[349775241,1737420671922,-2840.37,0.00021643,2]
[349775242,1737420671932,-1226.71,0.00021643,2]
[349775243,1737420671944,-500.0,0.00021643,2]
[349775244,1737420671954,-652.51,0.00021643,2]
[349775245,1737420671964,-619.63,0.00021643,2]
[349775246,1737420671974,-958.08,0.00021643,2]
[349775247,1737420671984,-1204.91,0.00021643,2]
[349775248,1737420671994,-1210.94,0.00021643,2]
[349775249,1737420672005,-801.67,0.00021643,2]
[349775250,1737420672015,-500.0,0.00021643,2]
[349775251,1737420672025,-500.0,0.00021643,2]
[349775252,1737420672035,-500.0,0.00021643,2]
[349775253,1737420672045,-997.28,0.00021643,2]
[349775254,1737420672055,-2052.29,0.00021643,2]
[349775255,1737420672065,-1712.99,0.00021643,2]
[349775256,1737420672075,-513.12,0.00021643,2]
[349775257,1737420672084,-1991.53,0.00021643,2]
[349775258,1737420672094,-1181.16,0.00021643,2]
[349775259,1737420672104,-1416.54,0.00021643,2]
[349775260,1737420672113,-268.62191301,0.00021643,2]
[349775261,1737420672123,-3603.52,0.00021643,2]
[349775262,1737420672132,-2319.77,0.00021643,2]
[349775263,1737420672142,-780.49,0.00021643,2]
[349775264,1737420672152,-1254.23,0.00021643,2]
[349775265,1737420672161,-500.0,0.00021643,2]
[349775266,1737420672171,-500.0,0.00021643,2]
[349775267,1737420672181,-2547.64,0.00021643,2]
[349775268,1737420672192,-500.0,0.00021643,2]
[349775269,1737420672202,-556.06,0.00021643,2]
[349775270,1737420672212,-1503.59,0.00021643,2]
[349775271,1737420672222,-500.0,0.00021643,2]
[349775272,1737420672338,-500.0,0.00021643,2]
[349775273,1737420672350,-826.66,0.00021643,2]
[349775274,1737420672359,-500.0,0.00021643,2]
[349775275,1737420672368,-500.0,0.00021643,2]
[349775276,1737420672377,-1445.2,0.00021643,2]
[349775277,1737420672387,-549.87,0.00021643,2]
[349775278,1737420672396,-1204.67,0.00021643,2]
[349775279,1737420672407,-883.4,0.00021643,2]
[349775280,1737420672416,-500.0,0.00021643,2]
[349775281,1737420672426,-500.0,0.00021643,2]
[349775282,1737420672438,-500.0,0.00021643,2]
[349775283,1737420672447,-1126.47,0.00021643,2]
[349775284,1737420672457,-633.24,0.00021643,2]
[349775285,1737420672467,-2671.26,0.00021643,2]
[349775286,1737420672476,-693.42,0.00021643,2]
[349775287,1737420672486,-1915.82,0.00021643,2]
[349775288,1737420672497,-255.792562,0.00021643,2]
[349775289,1737420672506,-500.0,0.00021643,2]
[349775290,1737420672516,-2393.16,0.00021643,2]
[349775291,1737420672526,-500.0,0.00021643,2]
[349775292,1737420672535,-513.39,0.00021643,2]
[349775293,1737420672544,-603.06,0.00021643,2]
[349775294,1737420672554,-1417.44,0.00021643,2]
[349775295,1737420672563,-500.0,0.00021643,2]
[349775296,1737420672572,-500.0,0.00021643,2]
[349775297,1737420672582,-500.0,0.00021643,2]
[349775298,1737420672591,-500.0,0.00021643,2]
[349775299,1737420672600,-500.0,0.00021643,2]
[349775300,1737420672609,-500.0,0.00021643,2]
[349775301,1737420672619,-582.27,0.00021643,2]
[349775302,1737420672628,-500.0,0.00021643,2]
[349775303,1737420672637,-1857.25,0.00021643,2]
[349775304,1737420672647,-2242.43,0.00021643,2]
[349775305,1737420672657,-500.0,0.00021647,2]
[349775306,1737420672666,-429.91334377,0.00021647,2]
[349775307,1737420672678,-846.0,0.0002167,2]
[349775308,1737420672689,-438.19,0.00021671,2]
[349775309,1737420672698,-5900.42,0.00021685,7]
[349775310,1737420672707,-5900.42,0.00021685,7]
[349775311,1737420672717,-5900.42,0.00021685,7]
[349775312,1737420672726,-5900.42,0.00021685,7]
[349775313,1737420672735,-230.81181001,0.00021693,3]
[349775314,1737420672745,-3586.62373333,0.00021727,2]
[349775315,1737420672754,-5379.93559998,0.00021728,2]
[349775316,1737420672763,-59467.96763771,0.00021728,2]
[349775317,1737420672772,-1824.84971743,0.00021729,2]
[349775318,1737420672781,-1824.84971743,0.00021731,2]
[349775319,1737420672791,-39645.31175848,0.00021739,2]
[349775320,1737420672800,-5379.93559998,0.00021739,2]
[349775321,1737420672810,-5379.93559998,0.00021741,2]
[349775322,1737420672819,-200.0,0.00021744,2]
[349775323,1737420672829,-1189.37953344,0.00021745,2]
[349775324,1737420672838,-5379.93559998,0.00021747,2]
[349775325,1737420672847,-200.0,0.00021749,2]
[349775326,1737420672857,-39645.31175848,0.00021757,2]
[349775327,1737420672866,-200.0,0.00021759,2]
[349775328,1737420672876,-230.81181001,0.00021762,3]
[349775329,1737420672885,-200.0,0.00021762,2]
[349775330,1737420672895,-2430.32615806,0.00021765,2]
[349775331,1737420672905,-3586.62373333,0.00021765,2]
[349775332,1737420672915,-4757.5181338,0.00021772,2]
[349775333,1737420672924,-5379.93559998,0.00021773,2]
[349775334,1737420672934,-4757.5181338,0.00021776,2]
[349775335,1737420672948,-134396.17772872,0.0002178,2]
[349775336,1737420672958,-3000.0,0.0002178,2]
[349775337,1737420672967,-2430.32615806,0.0002178,2]
[349775338,1737420672977,-912.42485871,0.0002178,2]
[349775339,1737420672987,-1824.84971743,0.00021781,2]
[349775340,1737420672998,-500.0,0.00021784,2]
[349775341,1737420673009,-673.02,0.00021784,2]
[349775342,1737420673019,-500.0,0.00021784,2]
[349775343,1737420673028,-1824.84971743,0.00021786,2]
[349775344,1737420673038,-912.42485871,0.00021789,2]
[349775345,1737420673047,-1824.84971743,0.00021789,2]
[349775346,1737420673057,-150.0,0.00021789,2]
[349775347,1737420673066,-3645.48923709,0.0002179,2]
[349775348,1737420673075,-39645.31175848,0.0002179,2]
[349775349,1737420673085,-3586.62373333,0.00021791,2]
[349775350,1737420673094,-1189.37953344,0.00021791,2]
[349775351,1737420673103,-2430.32615806,0.00021793,2]
[349775352,1737420673112,-150.0,0.00021794,2]
[349775353,1737420673121,-1824.84971743,0.00021797,2]
[349775354,1737420673131,-153.0,0.000218,2]
[349775355,1737420673141,-1000.0,0.000218,2]
[349775356,1737420673151,-59467.96763771,0.00021804,2]
[349775357,1737420673161,-59467.96763771,0.00021806,2]
[349775358,1737420673171,-4757.5181338,0.00021807,2]
[349775359,1737420673180,-39645.31175848,0.00021807,2]
[349775360,1737420673193,-2430.32615806,0.00021808,2]
[349775361,1737420673203,-1824.84971743,0.00021809,2]
[349775362,1737420673212,-912.42485871,0.00021811,2]
[349775363,1737420673227,-1482.97,0.00021817,2]
[349775364,1737420673236,-401.86518603,0.00021817,2]
[349775365,1737420673246,-1199.3,0.00021817,2]
[349775366,1737420673256,-551.03,0.00021817,2]
[349775367,1737420673267,-2292.14,0.00021817,2]
[349775368,1737420673276,-500.0,0.00021817,2]
[349775369,1737420673287,-500.0,0.00021817,2]
[349775370,1737420673297,-500.0,0.00021817,2]
[349775371,1737420673307,-753.81,0.00021817,2]
[349775372,1737420673316,-597.97,0.00021817,2]
[349775373,1737420673327,-750.01,0.00021817,2]
[349775374,1737420673337,-1174.84,0.00021817,2]
[349775375,1737420673347,-652.84,0.00021817,2]
[349775376,1737420673358,-2187.02,0.00021817,2]
[349775377,1737420673367,-848.77,0.00021817,2]
[349775378,1737420673377,-1671.37,0.00021817,2]
[349775379,1737420673386,-3969.98,0.00021817,2]
[349775380,1737420673396,-500.0,0.00021817,2]
[349775381,1737420673406,-634.19,0.00021817,2]
[349775382,1737420673416,-3283.45,0.00021817,2]
[349775383,1737420673425,-1093.65,0.00021817,2]
[349775384,1737420673434,-654.71,0.00021817,2]
[349775385,1737420673449,-2167.64,0.00021817,2]
[349775386,1737420673459,-636.22,0.00021817,2]
[349775387,1737420673469,-500.0,0.00021817,2]
[349775388,1737420673480,-709.4,0.00021817,2]
[349775389,1737420673490,-1498.52,0.00021817,2]
[349775390,1737420673501,-1044.91,0.00021817,2]
[349775391,1737420673511,-159.74225505,0.00021817,4]
[349775392,1737420673521,-1345.86,0.00021817,2]
[349775393,1737420673531,-500.0,0.00021817,2]
[349775394,1737420673541,-966.72,0.00021817,2]
[349775395,1737420673550,-1000.0,0.00021817,2]
[349775396,1737420673560,-1312.72,0.00021817,2]
[349775397,1737420673572,-615.08,0.00021817,2]
[349775398,1737420673582,-1967.56,0.00021817,2]
[349775399,1737420673591,-1824.84971743,0.0002182,2]
[349775400,1737420673603,-222.23926154,0.0002182,2]
[349775401,1737420673614,-25849.17245991,0.0002182,2]
[349775402,1737420673624,-7323.60863846,0.0002182,2]
[349775403,1737420673636,-4757.5181338,0.00021821,2]
[349775404,1737420673646,-3586.62373333,0.00021821,2]
[349775405,1737420673656,-3645.48923709,0.00021822,2]
[349775406,1737420673667,-1824.84971743,0.00021823,2]
[349775407,1737420673677,-500.0,0.00021823,2]
[349775408,1737420673688,-500.0,0.00021824,2]
[349775409,1737420673705,-172.0,0.0002183,2]
[349775410,1737420673716,-59467.96763771,0.00021831,2]
[349775411,1737420673725,-230.81181001,0.00021831,3]
[349775412,1737420673736,-1189.37953344,0.00021831,2]
[349775413,1737420673747,-3645.48923709,0.00021832,2]
[349775414,1737420673757,-912.42485871,0.00021832,2]
[349775415,1737420673767,-3586.62373333,0.00021837,2]
[349775416,1737420673777,-1824.84971743,0.00021843,2]
[349775417,1737420673786,-4757.5181338,0.00021849,2]
[349775418,1737420673796,-166.0,0.0002185,2]
[349775419,1737420673806,-1189.37953344,0.00021853,2]
[349775420,1737420673815,-3645.48923709,0.00021854,2]
[349775421,1737420673825,-39645.31175848,0.00021857,2]
[349775422,1737420673834,-481.74083404,0.00021859,2]
[349775423,1737420673844,-25849.17245989,0.0002186,2]
[349775424,1737420673853,-7323.60863845,0.0002186,2]
[349775425,1737420673863,-3645.48923709,0.00021862,2]
[349775426,1737420673873,-2430.32615806,0.00021863,2]
[349775427,1737420673882,-104973.0,0.00021863,2]
[349775428,1737420673891,-150.0,0.00021874,2]
[349775429,1737420673902,-59467.96763771,0.00021875,2]